fUST/lending_fUST_20260513
["ID","MTS","AMOUNT","RATE_DAILY","PERIOD"]
[422186505,1778664631000,-420.0,0.00010115,2]
[422186517,1778664631000,-500.0,0.0001041,2]
[422186547,1778664632000,-203.03130565,0.00010557,2]
[422186556,1778664632000,-500.0,0.00010557,2]
[422186558,1778664632000,-500.0,0.00010557,2]
[422186553,1778664632000,-500.0,0.00010557,2]
[422186555,1778664632000,-500.0,0.00010557,2]
[422186562,1778664632000,-347.97412782,0.00010557,2]
[422186551,1778664632000,-500.0,0.00010557,2]
[422186543,1778664632000,-500.0,0.00010557,2]
[422186537,1778664632000,-477.34114189,0.00010557,2]
[422186541,1778664632000,-500.0,0.00010557,2]
[422186533,1778664632000,-500.0,0.00010557,2]
[422186531,1778664632000,-501.36392459,0.00010557,2]
[422186560,1778664632000,-152.02587218,0.00010557,2]
[422186539,1778664632000,-500.0,0.00010557,2]
[422186529,1778664632000,-500.0,0.00010557,2]
[422186535,1778664632000,-500.0,0.00010557,2]
[422186549,1778664632000,-500.0,0.00010557,2]
[422186573,1778664632000,-500.0,0.00010557,2]
[422186545,1778664632000,-500.0,0.00010557,2]
[422186564,1778664632000,-500.0,0.00010557,2]
[422186566,1778664632000,-500.0,0.00010557,2]
[422186602,1778664632000,-7588.92971863,0.00010558,2]
[422186600,1778664632000,-500.0,0.00010557,2]
[422186596,1778664632000,-248.57519732,0.00010557,2]
[422186594,1778664632000,-500.0,0.00010557,2]
[422186590,1778664632000,-500.0,0.00010557,2]
[422186588,1778664632000,-500.0,0.00010557,2]
[422186592,1778664632000,-500.0,0.00010557,2]
[422186584,1778664632000,-500.0,0.00010557,2]
[422186598,1778664632000,-500.0,0.00010557,2]
[422186571,1778664632000,-348.47934072,0.00010557,2]
[422186582,1778664632000,-500.0,0.00010557,2]
[422186580,1778664632000,-500.0,0.00010557,2]
[422186575,1778664632000,-500.0,0.00010557,2]
[422186586,1778664632000,-500.0,0.00010557,2]
[422186577,1778664632000,-500.0,0.00010557,2]
[422186579,1778664632000,-500.0,0.00010557,2]
[422186568,1778664632000,-151.52065928,0.00010557,2]
[422186803,1778664638000,-14539.36141053,0.00010558,2]
[422186802,1778664638000,-50539.72861354,0.00010558,2]
[422186800,1778664638000,-461.27161685,0.0001041,2]
[422186798,1778664638000,-500.0,0.0001041,2]
[422186839,1778664646000,-500.0,0.0001088,2]
[422186836,1778664646000,-161.63868993,0.00010838,2]
[422186840,1778664646000,-500.0,0.0001088,2]
[422186837,1778664646000,-355.828,0.00010857,2]
[422186843,1778664646000,-500.0,0.0001088,2]
[422186838,1778664646000,-500.0,0.0001088,2]
[422186841,1778664646000,-500.0,0.0001088,2]
[422186845,1778664646000,-500.0,0.0001088,2]
[422186833,1778664646000,-500.0,0.00010689,2]
[422186835,1778664646000,-160.0,0.00010838,2]
[422186834,1778664646000,-160.0,0.00010838,2]
[422186821,1778664646000,-13793.15493209,0.00010558,2]
[422186829,1778664646000,-500.0,0.00010689,2]
[422186828,1778664646000,-500.0,0.00010689,2]
[422186830,1778664646000,-500.0,0.00010689,2]
[422186827,1778664646000,-500.0,0.00010689,2]
[422186826,1778664646000,-9084.70360788,0.00010558,2]
[422186825,1778664646000,-9145.54176067,0.00010558,2]
[422186824,1778664646000,-927.19930424,0.00010558,2]
[422186823,1778664646000,-6165.86676812,0.00010558,2]
[422186822,1778664646000,-11671.78501157,0.00010558,2]
[422186852,1778664646000,-500.0,0.0001088,2]
[422186831,1778664646000,-500.0,0.00010689,2]
[422186848,1778664646000,-500.0,0.0001088,2]
[422186832,1778664646000,-500.0,0.00010689,2]
[422186842,1778664646000,-500.0,0.0001088,2]
[422186844,1778664646000,-500.0,0.0001088,2]
[422186871,1778664646000,-1067.46706312,0.00010954,2]
[422186870,1778664646000,-1067.46706312,0.00010954,2]
[422186869,1778664646000,-1067.46706312,0.00010954,2]
[422186868,1778664646000,-1067.46706312,0.00010954,2]
[422186867,1778664646000,-1067.46706312,0.00010954,2]
[422186861,1778664646000,-1067.46706312,0.00010954,2]
[422186860,1778664646000,-1067.46706312,0.00010954,2]
[422186858,1778664646000,-1067.46706312,0.00010954,2]
[422186856,1778664646000,-1067.46706312,0.00010954,2]
[422186853,1778664646000,-567.08,0.0001088,2]
[422186866,1778664646000,-1067.46706312,0.00010954,2]
[422186862,1778664646000,-1067.46706312,0.00010954,2]
[422186855,1778664646000,-160.0,0.000109,2]
[422186863,1778664646000,-1067.46706312,0.00010954,2]
[422186847,1778664646000,-500.0,0.0001088,2]
[422186850,1778664646000,-500.0,0.0001088,2]
[422186849,1778664646000,-500.0,0.0001088,2]
[422186846,1778664646000,-500.0,0.0001088,2]
[422186851,1778664646000,-500.0,0.0001088,2]
[422186864,1778664646000,-1067.46706312,0.00010954,2]
[422186865,1778664646000,-1067.46706312,0.00010954,2]
[422186859,1778664646000,-1067.46706312,0.00010954,2]
[422186857,1778664646000,-359.29190651,0.00010954,2]
[422186854,1778664646000,-500.0,0.0001088,2]
[422186892,1778664647000,-500.0,0.00010958,2]
[422186881,1778664647000,-500.0,0.00010958,2]
[422186880,1778664647000,-500.0,0.00010958,2]
[422186883,1778664647000,-500.0,0.00010958,2]
[422186891,1778664647000,-500.0,0.00010958,2]
[422186873,1778664647000,-1067.46706312,0.00010954,2]
[422186878,1778664647000,-500.0,0.00010958,2]
[422186879,1778664647000,-500.0,0.00010958,2]
[422186872,1778664647000,-1067.46706312,0.00010954,2]
[422186875,1778664647000,-500.0,0.00010958,2]
[422186877,1778664647000,-3089.9425,0.00010958,2]
[422186876,1778664647000,-500.0,0.00010958,2]
[422186887,1778664647000,-583.89,0.00010958,2]
[422186874,1778664647000,-156.545,0.00010957,2]
[422186888,1778664647000,-500.0,0.00010958,2]
[422186884,1778664647000,-500.0,0.00010958,2]
[422186900,1778664647000,-190.19940473,0.00010958,2]
[422186893,1778664647000,-500.0,0.00010958,2]
[422186895,1778664647000,-500.0,0.00010958,2]
[422186899,1778664647000,-63.54312717,0.00010958,2]
[422186897,1778664647000,-500.0,0.00010958,2]
[422186896,1778664647000,-500.0,0.00010958,2]
[422186894,1778664647000,-500.0,0.00010958,2]
[422186885,1778664647000,-500.0,0.00010958,2]
[422186890,1778664647000,-354.84693996,0.00010958,2]
[422186886,1778664647000,-500.0,0.00010958,2]
[422186889,1778664647000,-500.0,0.00010958,2]
[422186898,1778664647000,-436.45687283,0.00010958,2]
[422186882,1778664647000,-500.0,0.00010958,2]
[422186928,1778664649000,-767.21,0.00010958,2]
[422186917,1778664649000,-500.0,0.00010958,2]
[422186913,1778664649000,-500.0,0.00010958,2]
[422186915,1778664649000,-500.0,0.00010958,2]
[422186910,1778664649000,-984.6,0.00010958,2]
[422186912,1778664649000,-500.0,0.00010958,2]
[422186909,1778664649000,-804.55,0.00010958,2]
[422186908,1778664649000,-301.09037534,0.00010958,2]
[422186929,1778664649000,-500.0,0.00010958,2]
[422186911,1778664649000,-500.0,0.00010958,2]
[422186918,1778664649000,-151.85271942,0.00010958,2]
[422186914,1778664649000,-500.0,0.00010958,2]
[422186921,1778664649000,-500.0,0.00010958,2]
[422186931,1778664649000,-500.0,0.00010958,2]
[422186930,1778664649000,-500.0,0.00010958,2]
[422186932,1778664649000,-740.43,0.00010958,2]
[422186924,1778664649000,-500.0,0.00010958,2]
[422186925,1778664649000,-500.0,0.00010958,2]
[422186926,1778664649000,-500.0,0.00010958,2]
[422186922,1778664649000,-500.0,0.00010958,2]
[422186919,1778664649000,-500.0,0.00010958,2]
[422186923,1778664649000,-500.0,0.00010958,2]
[422186927,1778664649000,-500.0,0.00010958,2]
[422186916,1778664649000,-636.26,0.00010958,2]
[422186920,1778664649000,-500.0,0.00010958,2]
[422186944,1778664650000,-1053.69,0.00010958,2]
[422186948,1778664650000,-500.0,0.00010958,2]
[422186953,1778664650000,-1581.44,0.00010958,2]
[422186955,1778664650000,-676.05,0.00010958,2]
[422186958,1778664650000,-587.21,0.00010958,2]
[422186950,1778664650000,-626.78,0.00010958,2]
[422186949,1778664650000,-584.71,0.00010958,2]
[422186952,1778664650000,-500.0,0.00010958,2]
[422186954,1778664650000,-500.0,0.00010958,2]
[422186951,1778664650000,-500.0,0.00010958,2]
[422186946,1778664650000,-500.0,0.00010958,2]
[422186947,1778664650000,-500.0,0.00010958,2]
[422186935,1778664650000,-500.0,0.00010958,2]
[422186945,1778664650000,-500.0,0.00010958,2]
[422186943,1778664650000,-500.0,0.00010958,2]
[422186940,1778664650000,-500.0,0.00010958,2]
[422186941,1778664650000,-500.0,0.00010958,2]
[422186936,1778664650000,-500.0,0.00010958,2]
[422186942,1778664650000,-500.0,0.00010958,2]
[422186937,1778664650000,-620.93,0.00010958,2]
[422186938,1778664650000,-500.0,0.00010958,2]
[422186939,1778664650000,-712.06,0.00010958,2]
[422186933,1778664650000,-500.0,0.00010958,2]
[422186934,1778664650000,-500.0,0.00010958,2]
[422186956,1778664650000,-500.0,0.00010958,2]
[422186957,1778664650000,-500.0,0.00010958,2]
[422186962,1778664650000,-500.0,0.00010958,2]
[422186960,1778664650000,-512.55,0.00010958,2]
[422186959,1778664650000,-500.0,0.00010958,2]
[422186985,1778664650000,-170.98372639,0.00010958,2]
[422186984,1778664650000,-500.0,0.00010958,2]
[422186978,1778664650000,-908.4,0.00010958,2]
[422186979,1778664650000,-500.0,0.00010958,2]
[422186976,1778664650000,-500.0,0.00010958,2]
[422186980,1778664650000,-500.0,0.00010958,2]
[422186974,1778664650000,-500.0,0.00010958,2]
[422186975,1778664650000,-500.0,0.00010958,2]
[422186970,1778664650000,-500.0,0.00010958,2]
[422186972,1778664650000,-428.47,0.00010958,2]
[422186973,1778664650000,-1131.96,0.00010958,2]
[422186977,1778664650000,-846.05,0.00010958,2]
[422186971,1778664650000,-1696.81,0.00010958,2]
[422186983,1778664650000,-500.0,0.00010958,2]
[422186981,1778664650000,-1762.18,0.00010958,2]
[422186963,1778664650000,-500.0,0.00010958,2]
[422186967,1778664650000,-565.77,0.00010958,2]
[422186961,1778664650000,-879.22,0.00010958,2]
[422186969,1778664650000,-500.0,0.00010958,2]
[422186965,1778664650000,-500.0,0.00010958,2]
[422186966,1778664650000,-740.03,0.00010958,2]
[422186968,1778664650000,-500.0,0.00010958,2]
[422186964,1778664650000,-500.0,0.00010958,2]
[422186982,1778664650000,-600.62,0.00010958,2]
[422186989,1778664839000,1000.0,5.001e-05,2]
[422186988,1778664839000,506.80678666,5.001e-05,2]
[422186990,1778664839000,1000.0,5.001e-05,2]
[422186991,1778664839000,500.0,5.001e-05,2]
[422186992,1778664869000,5000.0,5e-05,2]
[422186993,1778664890000,4205.56739113,5e-05,2]
[422186997,1778665032000,5000.0,5e-05,2]
[422186998,1778665054000,2954.74882679,5e-05,2]
[422187052,1778665832000,-162.862081,9.051e-05,2]
[422187036,1778665832000,-162.862081,5.026e-05,2]
[422187047,1778665832000,-162.862081,7.441e-05,2]
[422187043,1778665832000,-162.862081,6.636e-05,2]
[422187045,1778665832000,-496.49668648,7.127e-05,2]
[422187041,1778665832000,-162.862081,5.831e-05,2]
[422187049,1778665832000,-162.862081,8.246e-05,2]
[422187039,1778665832000,-420.7599038,5.127e-05,2]
[422187057,1778665832000,-234.40748993,9.127e-05,2]
[422187066,1778665832000,-284.663,9.999e-05,2]
[422187068,1778665832000,-1413.0838639,9.999e-05,2]
[422187072,1778665832000,-624.10213859,9.999e-05,2]
[422187055,1778665832000,-337.82597924,9.127e-05,2]
[422187063,1778665832000,-1200.0,9.998e-05,2]
[422187061,1778665832000,-300.0,9.998e-05,2]
[422187059,1778665832000,-162.862081,9.856e-05,2]
[422187070,1778665832000,-425.97873272,9.999e-05,2]
[422187557,1778665841000,-4120.53608734,9.999e-05,2]
[422187550,1778665841000,-6873.60132231,9.999e-05,2]
[422187532,1778665841000,-15898.25994324,9.999e-05,2]
[422187530,1778665841000,-5264.20725863,9.999e-05,2]
[422187774,1778665843000,-8462.20249191,9.999e-05,2]
[422187772,1778665843000,-1246.62269966,9.999e-05,2]
[422187776,1778665843000,-760.69687761,9.999e-05,2]
[422188150,1778665846000,-70631.06817422,9.999e-05,2]
[422188152,1778665846000,-4329.75983082,9.999e-05,2]
[422189925,1778666492000,-587.81482829,8.864e-05,2]
[422189927,1778666699000,158.879906,4.321e-05,2]
[422190069,1778667038000,-5000.0,7.156e-05,2]
[422190072,1778667038000,-5000.0,7.228e-05,2]
[422190070,1778667038000,-1200.0,7.227e-05,2]
[422190078,1778667038000,-192.82074961,7.6e-05,2]
[422190076,1778667038000,-5000.0,7.301e-05,2]
[422190074,1778667038000,-414.0428435,7.265e-05,2]
[422190159,1778667040000,-259.6310944,9.466e-05,2]
[422190160,1778667040000,-151.0,9.466e-05,2]
[422190157,1778667040000,-2071.11806396,7.6e-05,2]
[422190158,1778667040000,-488.57055533,9.265e-05,2]
[422190178,1778667041000,-221.32539066,9.999e-05,2]
[422190181,1778667041000,-500.0,9.999e-05,2]
[422190180,1778667041000,-500.0,9.999e-05,2]
[422190184,1778667041000,-500.0,9.999e-05,2]
[422190177,1778667041000,-500.0,9.999e-05,2]
[422190187,1778667041000,-500.0,9.999e-05,2]
[422190182,1778667041000,-500.0,9.999e-05,2]
[422190188,1778667041000,-500.0,9.999e-05,2]
[422190186,1778667041000,-500.0,9.999e-05,2]
[422190172,1778667041000,-145.77590694,9.999e-05,2]
[422190168,1778667041000,-500.0,9.999e-05,2]
[422190174,1778667041000,-500.0,9.999e-05,2]
[422190171,1778667041000,-105.72842762,9.999e-05,2]
[422190170,1778667041000,-361.07312072,9.999e-05,2]
[422190169,1778667041000,-500.0,9.999e-05,2]
[422190175,1778667041000,-379.79950669,9.999e-05,2]
[422190165,1778667041000,-500.0,9.999e-05,2]
[422190167,1778667041000,-500.0,9.999e-05,2]
[422190176,1778667041000,-120.20049331,9.999e-05,2]
[422190166,1778667041000,-500.0,9.999e-05,2]
[422190162,1778667041000,-386.9548835,9.475e-05,2]
[422190164,1778667041000,-227.73,9.9e-05,2]
[422190161,1778667041000,-151.0,9.466e-05,2]
[422190163,1778667041000,-153.06856925,9.9e-05,2]
[422190173,1778667041000,-500.0,9.999e-05,2]
[422190179,1778667041000,-278.67460934,9.999e-05,2]
[422190194,1778667041000,-500.0,9.999e-05,2]
[422190183,1778667041000,-500.0,9.999e-05,2]
[422190185,1778667041000,-500.0,9.999e-05,2]
[422190213,1778667041000,-885.99766239,9.999e-05,2]
[422190206,1778667041000,-885.99766239,9.999e-05,2]
[422190205,1778667041000,-885.99766239,9.999e-05,2]
[422190208,1778667041000,-885.99766239,9.999e-05,2]
[422190209,1778667041000,-885.99766239,9.999e-05,2]
[422190211,1778667041000,-885.99766239,9.999e-05,2]
[422190207,1778667041000,-885.99766239,9.999e-05,2]
[422190214,1778667041000,-433.19966973,9.999e-05,2]
[422190212,1778667041000,-885.99766239,9.999e-05,2]
[422190203,1778667041000,-885.99766239,9.999e-05,2]
[422190202,1778667041000,-885.99766239,9.999e-05,2]
[422190204,1778667041000,-885.99766239,9.999e-05,2]
[422190197,1778667041000,-399.18223049,9.999e-05,2]
[422190190,1778667041000,-500.0,9.999e-05,2]
[422190198,1778667041000,-885.99766239,9.999e-05,2]
[422190189,1778667041000,-500.0,9.999e-05,2]
[422190210,1778667041000,-885.99766239,9.999e-05,2]
[422190201,1778667041000,-885.99766239,9.999e-05,2]
[422190200,1778667041000,-885.99766239,9.999e-05,2]
[422190199,1778667041000,-885.99766239,9.999e-05,2]
[422190196,1778667041000,-500.0,9.999e-05,2]
[422190193,1778667041000,-199.53098381,9.999e-05,2]
[422190192,1778667041000,-500.0,9.999e-05,2]
[422190195,1778667041000,-500.0,9.999e-05,2]
[422190191,1778667041000,-500.0,9.999e-05,2]
[422190238,1778667043000,-915.5309178,9.999e-05,2]
[422190231,1778667043000,-452.79799266,9.999e-05,2]
[422190233,1778667043000,-721.33167212,9.999e-05,2]
[422190232,1778667043000,-164.66599027,9.999e-05,2]
[422190235,1778667043000,-698.8191994,9.999e-05,2]
[422190240,1778667043000,-915.5309178,9.999e-05,2]
[422190239,1778667043000,-915.5309178,9.999e-05,2]
[422190234,1778667043000,-885.99766239,9.999e-05,2]
[422190236,1778667043000,-187.17846299,9.999e-05,2]
[422190241,1778667043000,-915.5309178,9.999e-05,2]
[422190242,1778667043000,-915.5309178,9.999e-05,2]
[422190243,1778667043000,-915.5309178,9.999e-05,2]
[422190244,1778667043000,-915.5309178,9.999e-05,2]
[422190245,1778667043000,-2830.9207237,0.0001,2]
[422190246,1778667043000,-453.0,0.0001,2]
[422190247,1778667043000,-652.25,0.0001,2]
[422190237,1778667043000,-915.5309178,9.999e-05,2]
[422190251,1778667046000,-984.7182516,0.0001,2]
[422190252,1778667047000,-15336.04182989,0.0001,2]
[422190253,1778667611000,163.076487,4.453e-05,2]
[422190350,1778668232000,-325.0,9.998e-05,2]
[422190359,1778668232000,-500.0,9.999e-05,2]
[422190357,1778668232000,-500.0,9.999e-05,2]
[422190348,1778668232000,-517.56039329,9.9e-05,2]
[422190361,1778668232000,-500.0,9.999e-05,2]
[422190344,1778668232000,-466.2395697,9.9e-05,2]
[422190367,1778668232000,-500.0,9.999e-05,2]
[422190346,1778668232000,-505.6204589,9.9e-05,2]
[422190365,1778668232000,-176.05303419,9.999e-05,2]
[422190363,1778668232000,-228.73463326,9.999e-05,2]
[422190356,1778668232000,-500.0,9.999e-05,2]
[422190369,1778668232000,-500.0,9.999e-05,2]
[422190380,1778668232000,-635.55565649,9.999e-05,2]
[422190352,1778668232000,-182.184,9.999e-05,2]
[422190354,1778668232000,-155.0,9.999e-05,2]
[422190324,1778668232000,-316.32706796,8.069e-05,2]
[422190339,1778668232000,-300.0,9.899e-05,2]
[422190326,1778668232000,-414.01117518,8.442e-05,2]
[422190320,1778668232000,-1006.81783792,8.069e-05,2]
[422190322,1778668232000,-908.06644971,8.069e-05,2]
[422190333,1778668232000,-300.0,9.899e-05,2]
[422190336,1778668232000,-300.0,9.899e-05,2]
[422190332,1778668232000,-300.0,9.899e-05,2]
[422190330,1778668232000,-151.2223658,8.709e-05,2]
[422190328,1778668232000,-456.1257011,8.653e-05,2]
[422190311,1778668232000,-1788.75663382,7.908e-05,2]
[422190309,1778668232000,-3211.24336618,7.908e-05,2]
[422190313,1778668232000,-156.45577714,7.988e-05,2]
[422190315,1778668232000,-411.74890997,8.069e-05,2]
[422190382,1778668232000,-635.55565649,9.999e-05,2]
[422190341,1778668232000,-271.32416471,9.9e-05,2]
[422190384,1778668232000,-635.55565649,9.999e-05,2]
[422190405,1778668232000,-635.55565649,9.999e-05,2]
[422190372,1778668232000,-500.0,9.999e-05,2]
[422190386,1778668232000,-635.55565649,9.999e-05,2]
[422190427,1778668232000,-761.2223431,9.999e-05,2]
[422190431,1778668232000,-545.55354784,0.0001,2]
[422190416,1778668232000,-656.74084503,9.999e-05,2]
[422190422,1778668232000,-277.24826148,9.999e-05,2]
[422190429,1778668232000,-369.7383683,0.0001,2]
[422190425,1778668232000,-656.74084503,9.999e-05,2]
[422190421,1778668232000,-656.74084503,9.999e-05,2]
[422190420,1778668232000,-656.74084503,9.999e-05,2]
[422190424,1778668232000,-379.49258355,9.999e-05,2]
[422190419,1778668232000,-656.74084503,9.999e-05,2]
[422190418,1778668232000,-656.74084503,9.999e-05,2]
[422190408,1778668232000,-635.55565649,9.999e-05,2]
[422190410,1778668232000,-635.55565649,9.999e-05,2]
[422190434,1778668232000,-438.23496928,0.0001,2]
[422190417,1778668232000,-656.74084503,9.999e-05,2]
[422190407,1778668232000,-635.55565649,9.999e-05,2]
[422190370,1778668232000,-500.0,9.999e-05,2]
[422190376,1778668232000,-232.96963344,9.999e-05,2]
[422190374,1778668232000,-258.78987436,9.999e-05,2]
[422190414,1778668232000,-635.55565649,9.999e-05,2]
[422190388,1778668232000,-635.55565649,9.999e-05,2]
[422190389,1778668232000,-635.55565649,9.999e-05,2]
[422190391,1778668232000,-635.55565649,9.999e-05,2]
[422190378,1778668232000,-635.55565649,9.999e-05,2]
[422190397,1778668232000,-635.55565649,9.999e-05,2]
[422190401,1778668232000,-635.55565649,9.999e-05,2]
[422190399,1778668232000,-635.55565649,9.999e-05,2]
[422190403,1778668232000,-635.55565649,9.999e-05,2]
[422190393,1778668232000,-635.55565649,9.999e-05,2]
[422190412,1778668232000,-635.55565649,9.999e-05,2]
[422190395,1778668232000,-635.55565649,9.999e-05,2]
[422190483,1778668241000,-1236.39766523,0.0001,2]
[422190481,1778668241000,-15684.95082217,0.0001,2]
[422190479,1778668241000,-2064.16437862,9.9e-05,2]
[422190569,1778668243000,-48081.70221914,0.0001,2]
[422190571,1778668247000,-6292.2066766,0.0001,2]
[422190573,1778668292000,-1573.79292292,9.899e-05,2]
[422190574,1778668444000,165.848715,4.633e-05,2]
[422190620,1778669432000,-257.75694807,5.074e-05,2]
[422190621,1778669432000,-714.32853685,5.074e-05,2]
[422190622,1778669432000,-859.11990399,5.074e-05,2]
[422190624,1778669432000,-1163.26236751,5.074e-05,2]
[422190623,1778669432000,-1117.43519046,5.074e-05,2]
[422190664,1778669438000,-888.09705312,5.074e-05,2]
[422190666,1778669438000,-426.43077937,5.223e-05,2]
[422190668,1778669438000,-165.848715,5.269e-05,2]
[422190670,1778669438000,-165.848715,5.905e-05,2]
[422190673,1778669438000,-165.848715,7.177e-05,2]
[422190677,1778669438000,-165.848715,7.812e-05,2]
[422190672,1778669438000,-165.848715,6.541e-05,2]
[422190679,1778669438000,-165.848715,8.448e-05,2]
[422190681,1778669438000,-165.848715,9.084e-05,2]
[422190682,1778669438000,-579.94585994,9.223e-05,2]
[422190675,1778669438000,-503.18831965,7.223e-05,2]
[422190684,1778669438000,-1200.0,9.463e-05,2]
[422190686,1778669438000,-460.2145871,9.466e-05,2]
[422190700,1778669438000,-1987.19619088,9.9e-05,2]
[422190702,1778669438000,-487.46771495,9.999e-05,2]
[422190701,1778669438000,-182.184,9.9e-05,2]
[422190697,1778669438000,-1893.5226141,9.9e-05,2]
[422190690,1778669438000,-300.0,9.896e-05,2]
[422190698,1778669438000,-1697.0708309,9.9e-05,2]
[422190691,1778669438000,-300.0,9.896e-05,2]
[422190693,1778669438000,-300.0,9.896e-05,2]
[422190695,1778669438000,-760.45391439,9.9e-05,2]
[422190688,1778669438000,-300.0,9.896e-05,2]
[422190720,1778669439000,-500.0,9.999e-05,2]
[422190722,1778669439000,-500.0,9.999e-05,2]
[422190716,1778669439000,-500.0,9.999e-05,2]
[422190710,1778669439000,-500.0,9.999e-05,2]
[422190714,1778669439000,-500.0,9.999e-05,2]
[422190721,1778669439000,-500.0,9.999e-05,2]
[422190705,1778669439000,-500.0,9.999e-05,2]
[422190709,1778669439000,-500.0,9.999e-05,2]
[422190706,1778669439000,-500.0,9.999e-05,2]
[422190703,1778669439000,-190.63298543,9.999e-05,2]
[422190704,1778669439000,-250.97665271,9.999e-05,2]
[422190707,1778669439000,-500.0,9.999e-05,2]
[422190715,1778669439000,-500.0,9.999e-05,2]
[422190719,1778669439000,-500.0,9.999e-05,2]
[422190708,1778669439000,-500.0,9.999e-05,2]
[422190713,1778669439000,-500.0,9.999e-05,2]
[422190711,1778669439000,-500.0,9.999e-05,2]
[422190733,1778669439000,-41221.45751177,0.0001,2]
[422190732,1778669439000,-21512.51644841,0.0001,2]
[422190726,1778669439000,-448.79102468,9.999e-05,2]
[422190728,1778669439000,-500.0,9.999e-05,2]
[422190731,1778669439000,-5675.56544906,0.0001,2]
[422190729,1778669439000,-400.0,9.999e-05,2]
[422190730,1778669439000,-25625.12511768,0.0001,2]
[422190712,1778669439000,-500.0,9.999e-05,2]
[422190727,1778669439000,-500.0,9.999e-05,2]
[422190725,1778669439000,-500.0,9.999e-05,2]
[422190735,1778669439000,-990.72703622,0.0001,2]
[422190724,1778669439000,-500.0,9.999e-05,2]
[422190723,1778669439000,-500.0,9.999e-05,2]
[422190718,1778669439000,-500.0,9.999e-05,2]
[422190717,1778669439000,-500.0,9.999e-05,2]
[422190734,1778669439000,-3528.57304545,0.0001,2]
[422190746,1778669444000,-18471.13165892,0.0001,2]
[422190745,1778669444000,-1494.60643486,0.0001,2]
[422190743,1778669444000,-1504.3502,0.0001,2]
[422190744,1778669444000,-454.96465952,0.0001,2]
[422190761,1778669450000,-622.4774053,9.999e-05,2]
[422190762,1778669450000,-1052.02261044,0.0001,2]
[422190764,1778669450000,-341.44406342,0.0001,2]
[422190763,1778669450000,-7457.91225139,0.0001,2]
[422190765,1778669450000,-2243.08747746,0.0001,2]
[422190767,1778669450000,-5181.52053099,0.0001,2]
[422190768,1778669450000,-6507.01992222,0.0001,2]
[422190806,1778670025000,159.608313,4.577e-05,2]
[422190833,1778670631000,-888.34205459,8.687e-05,2]
[422190842,1778670631000,-5000.0,8.775e-05,2]
[422190840,1778670631000,-1672.18393299,8.687e-05,2]
[422190848,1778670631000,-300.0,9.899e-05,2]
[422190844,1778670631000,-400.09659468,8.909e-05,2]
[422190846,1778670631000,-1200.0,9.797e-05,2]
[422190850,1778670631000,-300.0,9.899e-05,2]
[422190865,1778670631000,-3129.122199,9.9e-05,5]
[422190864,1778670631000,-1138.7,9.9e-05,2]
[422190860,1778670631000,-727.20534262,9.9e-05,2]
[422190858,1778670631000,-706.90455513,9.9e-05,2]
[422190856,1778670631000,-340.70764841,9.9e-05,2]
[422190854,1778670631000,-300.0,9.899e-05,2]
[422190852,1778670631000,-300.0,9.899e-05,2]
[422190862,1778670631000,-645.07972717,9.9e-05,2]
[422190958,1778670638000,-285.05246968,9.9e-05,5]
[422190956,1778670638000,-6665.9793094,9.9e-05,5]
[422190969,1778670640000,-452.28667416,9.9e-05,5]
[422190970,1778670640000,-359.50100004,9.9e-05,5]
[422190985,1778670643000,-257.75694807,9.801e-05,2]
[422190986,1778670643000,-1032.91011211,9.9e-05,5]
[422190994,1778670646000,-391.52382219,9.9e-05,2]
[422190995,1778670646000,-775.13665079,9.9e-05,2]
[422190996,1778670646000,-853.36375423,9.9e-05,2]
[422190997,1778670646000,-880.49229086,9.9e-05,2]
[422191003,1778670646000,-325.84505905,9.999e-05,2]
[422190999,1778670646000,-537.6845,9.994e-05,2]
[422191000,1778670646000,-162.380719,9.994e-05,2]
[422191002,1778670646000,-151.54046827,9.994e-05,2]
[422191001,1778670646000,-537.6845,9.994e-05,2]
[422190998,1778670646000,-151.0,9.994e-05,2]
[422190993,1778670646000,-233.34823561,9.9e-05,5]